[Event "*** SCC Grand Prix: Titled Tuesday Blitz"]
[Site "Chess.com"]
[Date "2020.08.11"]
[Round "5"]
[White "Barmen_EV"]
[Black "Rud_Makarian"]
[Result "0-1"]
[WhiteElo "2421"]
[BlackElo "2680"]
[TimeControl "180+1"]
[EndTime "10:54:20 PDT"]
[Termination "Rud_Makarian won by checkmate"]

1. d4 {[%clk 0:03:00.9]} 1... Nf6 {[%clk 0:03:00]} 2. c4 {[%clk 0:03:00.9]} 2...
g6 {[%clk 0:03:00.4]} 3. Nc3 {[%clk 0:03:01.2]} 3... Bg7 {[%clk 0:03:00.8]} 4.
e4 {[%clk 0:03:01.8]} 4... d6 {[%clk 0:03:01.1]} 5. f4 {[%clk 0:03:02]} 5... O-O
{[%clk 0:03:01.1]} 6. Nf3 {[%clk 0:03:02.6]} 6... c5 {[%clk 0:03:01.5]} 7. d5
{[%clk 0:03:03]} 7... e6 {[%clk 0:03:01.8]} 8. Be2 {[%clk 0:03:03.6]} 8... exd5
{[%clk 0:03:02.2]} 9. cxd5 {[%clk 0:03:04.5]} 9... Re8 {[%clk 0:03:02.6]} 10. e5
{[%clk 0:03:05.4]} 10... Ng4 {[%clk 0:03:03.1]} 11. h3 {[%clk 0:03:04.4]} 11...
Nh6 {[%clk 0:03:03.5]} 12. g4 {[%clk 0:03:04.6]} 12... dxe5 {[%clk 0:02:30.7]}
13. fxe5 {[%clk 0:03:05.5]} 13... Rxe5 {[%clk 0:02:30.7]} 14. Bxh6 {[%clk
0:02:45.6]} 14... Rxe2+ {[%clk 0:02:29.1]} 15. Qxe2 {[%clk 0:02:46.5]} 15...
Bxh6 {[%clk 0:02:29.3]} 16. Ne4 {[%clk 0:02:40.1]} 16... f5 {[%clk 0:02:17.7]}
17. Nc3 {[%clk 0:01:42.6]} 17... Bg7 {[%clk 0:02:12.4]} 18. O-O-O {[%clk
0:00:49]} 18... Na6 {[%clk 0:02:11.1]} 19. d6 {[%clk 0:00:43.3]} 19... Bd7
{[%clk 0:01:54.1]} 20. Ne5 {[%clk 0:00:32.5]} 20... Be6 {[%clk 0:01:31.6]} 21.
Nxg6 {[%clk 0:00:26.9]} 21... Qg5+ {[%clk 0:01:28.4]} 22. Kb1 {[%clk 0:00:26.1]}
22... Qxg6 {[%clk 0:01:28.3]} 23. gxf5 {[%clk 0:00:21.7]} 23... Bxf5+ {[%clk
0:01:27.6]} 24. Ka1 {[%clk 0:00:22.6]} 24... Nb4 {[%clk 0:01:25.4]} 25. a3
{[%clk 0:00:15.6]} 25... Nc2+ {[%clk 0:01:23.9]} 26. Ka2 {[%clk 0:00:15.6]}
26... Nd4 {[%clk 0:01:21.6]} 27. Qc4+ {[%clk 0:00:15.5]} 27... Be6 {[%clk
0:01:21.3]} 28. Nd5 {[%clk 0:00:15.6]} 28... Qf7 {[%clk 0:01:17.2]} 29. Qxc5
{[%clk 0:00:02.2]} 29... Bxd5+ {[%clk 0:01:17.3]} 30. Kb1 {[%clk 0:00:02.1]}
30... Be4+ {[%clk 0:01:15.9]} 31. Kc1 {[%clk 0:00:01.1]} 31... Nb3# {[%clk
0:01:15.9]} 0-1

[Event "*** SCC Grand Prix: Titled Tuesday Blitz"]
[Site "Chess.com"]
[Date "2020.08.11"]
[Round "5"]
[White "PIwan"]
[Black "Shota_Azaladze"]
[Result "1-0"]
[WhiteElo "2493"]
[BlackElo "2674"]
[TimeControl "180+1"]
[EndTime "10:54:22 PDT"]
[Termination "PIwan won by checkmate"]

1. c4 {[%clk 0:03:00.9]} 1... g6 {[%clk 0:02:59.1]} 2. Nc3 {[%clk 0:03:00.5]}
2... Bg7 {[%clk 0:02:59.4]} 3. d4 {[%clk 0:03:00.8]} 3... c5 {[%clk 0:02:59.4]}
4. d5 {[%clk 0:03:01]} 4... Bxc3+ {[%clk 0:02:58.6]} 5. bxc3 {[%clk 0:03:01.9]}
5... Qa5 {[%clk 0:02:58.7]} 6. Qc2 {[%clk 0:02:48.3]} 6... f5 {[%clk 0:02:57.7]}
7. e4 {[%clk 0:02:44.8]} 7... d6 {[%clk 0:02:55.1]} 8. exf5 {[%clk 0:02:38.6]}
8... Bxf5 {[%clk 0:02:54.1]} 9. Bd3 {[%clk 0:02:39.2]} 9... Bxd3 {[%clk
0:02:50.3]} 10. Qxd3 {[%clk 0:02:40.1]} 10... Nd7 {[%clk 0:02:50.2]} 11. Nf3
{[%clk 0:02:39.6]} 11... Ngf6 {[%clk 0:02:46.3]} 12. O-O {[%clk 0:02:37.2]}
12... O-O-O {[%clk 0:02:45.7]} 13. Re1 {[%clk 0:02:33.9]} 13... Rde8 {[%clk
0:02:45.6]} 14. h3 {[%clk 0:02:14.3]} 14... Qa6 {[%clk 0:02:44.2]} 15. Bg5
{[%clk 0:01:49.9]} 15... Nb6 {[%clk 0:02:40.3]} 16. Rxe7 {[%clk 0:01:27.1]}
16... Nfxd5 {[%clk 0:02:28.4]} 17. Rxe8+ {[%clk 0:01:13.5]} 17... Rxe8 {[%clk
0:02:29.3]} 18. Rd1 {[%clk 0:01:13.1]} 18... Nc7 {[%clk 0:01:35.9]} 19. Qxd6
{[%clk 0:00:50.5]} 19... Ne6 {[%clk 0:01:35.7]} 20. Be7 {[%clk 0:00:31.8]} 20...
Qxc4 {[%clk 0:01:24]} 21. Ne5 {[%clk 0:00:31.5]} 21... Qxa2 {[%clk 0:01:19.1]}
22. Nc6 {[%clk 0:00:26]} 22... g5 {[%clk 0:00:31.2]} 23. Qb8# {[%clk 0:00:23.5]}
1-0

[Event "*** SCC Grand Prix: Titled Tuesday Blitz"]
[Site "Chess.com"]
[Date "2020.08.11"]
[Round "5"]
[White "Anuar_Is"]
[Black "Shield12"]
[Result "0-1"]
[WhiteElo "2696"]
[BlackElo "2858"]
[TimeControl "180+1"]
[EndTime "10:54:25 PDT"]
[Termination "Shield12 won by resignation"]

1. e4 {[%clk 0:02:54.9]} 1... c5 {[%clk 0:03:00.4]} 2. Nf3 {[%clk 0:02:54.6]}
2... Nc6 {[%clk 0:03:01.1]} 3. d4 {[%clk 0:02:54.5]} 3... cxd4 {[%clk 0:03:02]}
4. Nxd4 {[%clk 0:02:55.4]} 4... Nf6 {[%clk 0:03:02.9]} 5. Nc3 {[%clk 0:02:55.6]}
5... d6 {[%clk 0:03:03.5]} 6. Bg5 {[%clk 0:02:55.2]} 6... e6 {[%clk 0:03:04]} 7.
Qd2 {[%clk 0:02:54.6]} 7... a6 {[%clk 0:03:04.6]} 8. O-O-O {[%clk 0:02:54]} 8...
Bd7 {[%clk 0:03:05.1]} 9. f4 {[%clk 0:02:51.1]} 9... b5 {[%clk 0:03:03.5]} 10.
Bxf6 {[%clk 0:02:45.3]} 10... gxf6 {[%clk 0:03:04.4]} 11. Kb1 {[%clk 0:02:43.6]}
11... Qb6 {[%clk 0:03:04.5]} 12. Nf5 {[%clk 0:02:39.4]} 12... exf5 {[%clk
0:03:00.3]} 13. Nd5 {[%clk 0:02:39.6]} 13... Qb7 {[%clk 0:02:40]} 14. Nxf6+
{[%clk 0:02:31.3]} 14... Kd8 {[%clk 0:02:40.1]} 15. e5 {[%clk 0:02:20.8]} 15...
Be7 {[%clk 0:02:40]} 16. Nd5 {[%clk 0:02:15.4]} 16... dxe5 {[%clk 0:02:36.8]}
17. fxe5 {[%clk 0:02:15.5]} 17... Ke8 {[%clk 0:02:27.9]} 18. Nb6 {[%clk
0:02:07.2]} 18... Rd8 {[%clk 0:02:25.3]} 19. Nxd7 {[%clk 0:02:06.5]} 19... Rxd7
{[%clk 0:02:25.9]} 20. Bd3 {[%clk 0:01:54.2]} 20... Nxe5 {[%clk 0:02:14.2]} 21.
Qc3 {[%clk 0:01:54.4]} 21... Qc7 {[%clk 0:02:07.4]} 22. Qxc7 {[%clk 0:01:51.8]}
22... Rxc7 {[%clk 0:02:07.2]} 23. Bxf5 {[%clk 0:01:52.7]} 23... Kf8 {[%clk
0:01:46.9]} 24. Rhe1 {[%clk 0:01:51.2]} 24... Rc5 {[%clk 0:01:46.7]} 25. b4
{[%clk 0:01:47.7]} 25... Rc4 {[%clk 0:01:40.5]} 26. a3 {[%clk 0:01:45.6]} 26...
Bf6 {[%clk 0:01:29.4]} 27. Rd6 {[%clk 0:01:45.2]} 27... Kg7 {[%clk 0:01:24.9]}
28. Rxa6 {[%clk 0:01:45.1]} 28... Rd8 {[%clk 0:01:23.2]} 29. g4 {[%clk
0:01:41.7]} 29... h6 {[%clk 0:01:20.6]} 30. h4 {[%clk 0:01:41.6]} 30... Nxg4
{[%clk 0:01:17]} 31. Bd3 {[%clk 0:01:32.1]} 31... Rcd4 {[%clk 0:01:07.3]} 32. h5
{[%clk 0:01:28.2]} 32... R8d5 {[%clk 0:00:58.6]} 33. Rg1 {[%clk 0:01:17.9]}
33... Rxh5 {[%clk 0:00:58.3]} 34. Ra7 {[%clk 0:01:12.1]} 34... Rg5 {[%clk
0:00:57.5]} 35. Rf1 {[%clk 0:01:07.5]} 35... h5 {[%clk 0:00:54.3]} 36. Rb7
{[%clk 0:01:05]} 36... h4 {[%clk 0:00:50.3]} 37. Bxb5 {[%clk 0:01:03.1]} 37...
h3 {[%clk 0:00:42.6]} 38. Rh1 {[%clk 0:01:02.1]} 38... Nf2 {[%clk 0:00:41]} 39.
Rh2 {[%clk 0:01:01.7]} 39... Rg2 {[%clk 0:00:40.4]} 0-1

[Event "*** SCC Grand Prix: Titled Tuesday Blitz"]
[Site "Chess.com"]
[Date "2020.08.11"]
[Round "5"]
[White "AlexTriapishko"]
[Black "ClydeHillKid"]
[Result "1-0"]
[WhiteElo "2673"]
[BlackElo "2330"]
[TimeControl "180+1"]
[EndTime "10:54:26 PDT"]
[Termination "AlexTriapishko won by resignation"]

1. e4 {[%clk 0:03:00.9]} 1... e6 {[%clk 0:02:55.4]} 2. Qe2 {[%clk 0:02:55]} 2...
Be7 {[%clk 0:02:52.9]} 3. Nf3 {[%clk 0:02:53.6]} 3... d5 {[%clk 0:02:51.6]} 4.
e5 {[%clk 0:02:53.4]} 4... c5 {[%clk 0:02:48.1]} 5. g3 {[%clk 0:02:53.3]} 5...
Nc6 {[%clk 0:02:47.8]} 6. d3 {[%clk 0:02:53.6]} 6... f6 {[%clk 0:02:28.1]} 7.
Bg2 {[%clk 0:02:51.5]} 7... fxe5 {[%clk 0:02:23.9]} 8. Nxe5 {[%clk 0:02:50.4]}
8... Nxe5 {[%clk 0:02:20.2]} 9. Qxe5 {[%clk 0:02:50.1]} 9... Nf6 {[%clk
0:02:19]} 10. O-O {[%clk 0:02:48.9]} 10... O-O {[%clk 0:02:11.6]} 11. Nc3 {[%clk
0:02:43.4]} 11... Bd7 {[%clk 0:01:45.2]} 12. Bd2 {[%clk 0:02:39.2]} 12... b5
{[%clk 0:01:41.7]} 13. h3 {[%clk 0:02:32.4]} 13... b4 {[%clk 0:01:40.6]} 14. Ne2
{[%clk 0:02:32.1]} 14... Qb8 {[%clk 0:01:22.2]} 15. Qxb8 {[%clk 0:02:25.3]}
15... Raxb8 {[%clk 0:01:21.6]} 16. Rfe1 {[%clk 0:02:26.2]} 16... Bd6 {[%clk
0:01:06.7]} 17. Nf4 {[%clk 0:02:21.6]} 17... Rfe8 {[%clk 0:01:03.4]} 18. h4
{[%clk 0:02:22]} 18... Kf7 {[%clk 0:00:55.1]} 19. a3 {[%clk 0:02:20.4]} 19... b3
{[%clk 0:00:50.8]} 20. c4 {[%clk 0:02:20.7]} 20... d4 {[%clk 0:00:39.3]} 21. Nh3
{[%clk 0:02:16.8]} 21... h6 {[%clk 0:00:38.5]} 22. Re2 {[%clk 0:02:09.1]} 22...
e5 {[%clk 0:00:37.4]} 23. f3 {[%clk 0:02:06.4]} 23... Bf5 {[%clk 0:00:37]} 24.
Nf2 {[%clk 0:02:06.7]} 24... Bc7 {[%clk 0:00:28.8]} 25. g4 {[%clk 0:01:58.3]}
25... Bd7 {[%clk 0:00:23.9]} 26. Bh3 {[%clk 0:01:55.8]} 26... a5 {[%clk
0:00:20.1]} 27. Rf1 {[%clk 0:01:49.8]} 27... Kg6 {[%clk 0:00:15.1]} 28. Kg2
{[%clk 0:01:45.4]} 28... h5 {[%clk 0:00:11.6]} 29. gxh5+ {[%clk 0:01:42.9]}
29... Kxh5 {[%clk 0:00:09.8]} 30. Bxd7 {[%clk 0:01:43.5]} 30... Nxd7 {[%clk
0:00:10.7]} 31. Ne4 {[%clk 0:01:43.9]} 31... Re6 {[%clk 0:00:06.8]} 32. Rh1
{[%clk 0:01:41.3]} 32... Rbe8 {[%clk 0:00:06.7]} 33. Bg5 {[%clk 0:01:39.4]}
33... Bb6 {[%clk 0:00:06.4]} 34. Ng3+ {[%clk 0:01:29.7]} 34... Kg6 {[%clk
0:00:06.3]} 35. Re4 {[%clk 0:01:30.6]} 35... Nf6 {[%clk 0:00:06]} 36. Bxf6
{[%clk 0:01:28.6]} 36... gxf6 {[%clk 0:00:06.9]} 37. Rg4+ {[%clk 0:01:28.1]}
37... Kf7 {[%clk 0:00:07.4]} 38. Nf5 {[%clk 0:01:28.7]} 38... Rg8 {[%clk
0:00:07.3]} 39. Nh6+ {[%clk 0:01:29]} 39... Ke7 {[%clk 0:00:06.8]} 40. Rxg8
{[%clk 0:01:29.9]} 40... Kd6 {[%clk 0:00:07.3]} 41. Nf5+ {[%clk 0:01:28.7]}
41... Kc6 {[%clk 0:00:07.8]} 42. h5 {[%clk 0:01:29.6]} 42... a4 {[%clk
0:00:07.7]} 43. h6 {[%clk 0:01:29.7]} 1-0

[Event "*** SCC Grand Prix: Titled Tuesday Blitz"]
[Site "Chess.com"]
[Date "2020.08.11"]
[Round "5"]
[White "Meri-Arabidze"]
[Black "chigorin28"]
[Result "1-0"]
[WhiteElo "2604"]
[BlackElo "2416"]
[TimeControl "180+1"]
[EndTime "10:54:29 PDT"]
[Termination "Meri-Arabidze won on time"]

1. d4 {[%clk 0:03:00.9]} 1... Nf6 {[%clk 0:02:59.5]} 2. c4 {[%clk 0:03:01.4]}
2... e6 {[%clk 0:02:59.1]} 3. Nf3 {[%clk 0:03:02.3]} 3... Bb4+ {[%clk
0:02:58.5]} 4. Bd2 {[%clk 0:03:01.6]} 4... Bxd2+ {[%clk 0:02:58.5]} 5. Qxd2
{[%clk 0:03:01.2]} 5... b6 {[%clk 0:02:59.4]} 6. Nc3 {[%clk 0:03:01.3]} 6... Bb7
{[%clk 0:02:59.9]} 7. e3 {[%clk 0:03:01.5]} 7... Ne4 {[%clk 0:03:00.1]} 8. Qc2
{[%clk 0:03:00.6]} 8... Nxc3 {[%clk 0:02:57.5]} 9. Qxc3 {[%clk 0:03:01.5]} 9...
O-O {[%clk 0:02:56.3]} 10. Be2 {[%clk 0:03:01.3]} 10... d6 {[%clk 0:02:56.5]}
11. O-O {[%clk 0:03:01.4]} 11... Nd7 {[%clk 0:02:57]} 12. b4 {[%clk 0:03:00.7]}
12... a5 {[%clk 0:02:55.2]} 13. a3 {[%clk 0:02:58.2]} 13... Qf6 {[%clk
0:02:23.5]} 14. h3 {[%clk 0:02:54.1]} 14... e5 {[%clk 0:02:16.8]} 15. d5 {[%clk
0:02:52.4]} 15... Qe7 {[%clk 0:01:58.8]} 16. e4 {[%clk 0:02:49.4]} 16... g6
{[%clk 0:01:56.5]} 17. Nd2 {[%clk 0:02:33.1]} 17... f5 {[%clk 0:01:46.8]} 18.
exf5 {[%clk 0:02:31]} 18... gxf5 {[%clk 0:01:24.3]} 19. Nb3 {[%clk 0:02:30.7]}
19... a4 {[%clk 0:01:07.2]} 20. Nd2 {[%clk 0:02:30.1]} 20... e4 {[%clk
0:01:04.2]} 21. f4 {[%clk 0:02:22.4]} 21... Qg7 {[%clk 0:00:23]} 22. Qxg7+
{[%clk 0:02:17.3]} 22... Kxg7 {[%clk 0:00:23.9]} 23. Rfc1 {[%clk 0:02:15]} 23...
Rf7 {[%clk 0:00:21.9]} 24. Nf1 {[%clk 0:02:14.9]} 24... Nf6 {[%clk 0:00:21.7]}
25. Ne3 {[%clk 0:02:15]} 25... Kg6 {[%clk 0:00:17.1]} 26. Kf2 {[%clk 0:02:13.4]}
26... h5 {[%clk 0:00:15.5]} 27. Rd1 {[%clk 0:02:05.5]} 27... h4 {[%clk
0:00:15.5]} 28. Rac1 {[%clk 0:02:05.6]} 28... Nh5 {[%clk 0:00:10.2]} 29. Bxh5+
{[%clk 0:02:01.9]} 29... Kxh5 {[%clk 0:00:11.1]} 30. c5 {[%clk 0:02:02.6]} 30...
bxc5 {[%clk 0:00:11.3]} 31. bxc5 {[%clk 0:02:02.5]} 31... Kg6 {[%clk 0:00:10.6]}
32. Rd4 {[%clk 0:01:55.3]} 32... Ra5 {[%clk 0:00:08.4]} 33. Rb4 {[%clk
0:01:49.4]} 33... Ba6 {[%clk 0:00:07.7]} 34. cxd6 {[%clk 0:01:47.7]} 34... cxd6
{[%clk 0:00:08.6]} 35. Rc6 {[%clk 0:01:47.7]} 35... Rd7 {[%clk 0:00:07.8]} 36.
Rbb6 {[%clk 0:01:47.3]} 36... Bd3 {[%clk 0:00:07.3]} 37. Rxd6+ {[%clk
0:01:47.6]} 37... Rxd6 {[%clk 0:00:08.2]} 38. Rxd6+ {[%clk 0:01:48.2]} 38... Kf7
{[%clk 0:00:08.7]} 39. Nxf5 {[%clk 0:01:48.3]} 39... Rb5 {[%clk 0:00:08.5]} 40.
Nxh4 {[%clk 0:01:42]} 40... Rb2+ {[%clk 0:00:08.4]} 41. Ke3 {[%clk 0:01:38.1]}
41... Re2+ {[%clk 0:00:03.1]} 42. Kd4 {[%clk 0:01:37.9]} 42... Bc2 {[%clk
0:00:01.4]} 43. Re6 {[%clk 0:01:30.3]} 1-0

[Event "*** SCC Grand Prix: Titled Tuesday Blitz"]
[Site "Chess.com"]
[Date "2020.08.11"]
[Round "5"]
[White "SilviusTiberius"]
[Black "Grieve72"]
[Result "1-0"]
[WhiteElo "2512"]
[BlackElo "2347"]
[TimeControl "180+1"]
[EndTime "10:54:29 PDT"]
[Termination "SilviusTiberius won by resignation"]

1. e4 {[%clk 0:03:00.9]} 1... c5 {[%clk 0:02:54.6]} 2. Nf3 {[%clk 0:02:59.8]}
2... e6 {[%clk 0:02:55]} 3. d4 {[%clk 0:02:59]} 3... cxd4 {[%clk 0:02:55.9]} 4.
Nxd4 {[%clk 0:02:59.5]} 4... Nc6 {[%clk 0:02:56.5]} 5. Nc3 {[%clk 0:02:59.6]}
5... Qc7 {[%clk 0:02:56.6]} 6. Be3 {[%clk 0:02:59.8]} 6... a6 {[%clk 0:02:56.5]}
7. Qf3 {[%clk 0:03:00]} 7... Nf6 {[%clk 0:02:55.5]} 8. O-O-O {[%clk 0:02:57.6]}
8... h5 {[%clk 0:02:54.8]} 9. Nxc6 {[%clk 0:02:54.9]} 9... dxc6 {[%clk
0:02:54.8]} 10. h3 {[%clk 0:02:24.9]} 10... b5 {[%clk 0:02:53.6]} 11. Bg5 {[%clk
0:01:59.7]} 11... e5 {[%clk 0:02:15.7]} 12. Bxf6 {[%clk 0:01:53.8]} 12... gxf6
{[%clk 0:02:16.6]} 13. Qxf6 {[%clk 0:01:53.3]} 13... Rh6 {[%clk 0:02:16.9]} 14.
Qf3 {[%clk 0:01:51.2]} 14... Be6 {[%clk 0:02:17]} 15. Kb1 {[%clk 0:01:48.8]}
15... Qa5 {[%clk 0:01:53.8]} 16. Be2 {[%clk 0:01:29]} 16... b4 {[%clk
0:01:34.4]} 17. Nd5 {[%clk 0:01:29]} 17... cxd5 {[%clk 0:01:34.8]} 18. exd5
{[%clk 0:01:29.9]} 18... Bd7 {[%clk 0:01:32.7]} 19. Bc4 {[%clk 0:01:25.9]} 19...
Bd6 {[%clk 0:01:28.7]} 20. Qe3 {[%clk 0:01:25.2]} 20... Rh8 {[%clk 0:01:15.1]}
21. f4 {[%clk 0:01:25.5]} 21... f6 {[%clk 0:01:09.2]} 22. fxe5 {[%clk
0:01:25.3]} 22... Bxe5 {[%clk 0:01:01.4]} 23. d6 {[%clk 0:01:19.4]} 23... Rc8
{[%clk 0:00:49.9]} 24. Rd5 {[%clk 0:01:18.7]} 24... Qxd5 {[%clk 0:00:23.3]} 25.
Bxd5 {[%clk 0:01:18.5]} 25... Bc6 {[%clk 0:00:19.9]} 26. Qa7 {[%clk 0:01:10.7]}
26... Bxd6 {[%clk 0:00:13.3]} 27. Re1+ {[%clk 0:01:03.7]} 27... Be5 {[%clk
0:00:13.3]} 28. Bxc6+ {[%clk 0:00:56.1]} 28... Rxc6 {[%clk 0:00:08.6]} 29. Qa8+
{[%clk 0:00:55.8]} 29... Kd7 {[%clk 0:00:08.8]} 30. Qxh8 {[%clk 0:00:51.3]} 1-0

[Event "*** SCC Grand Prix: Titled Tuesday Blitz"]
[Site "Chess.com"]
[Date "2020.08.11"]
[Round "5"]
[White "sergeikim"]
[Black "RobertoJBM"]
[Result "0-1"]
[WhiteElo "2463"]
[BlackElo "2716"]
[TimeControl "180+1"]
[EndTime "10:54:33 PDT"]
[Termination "RobertoJBM won by resignation"]

1. d4 {[%clk 0:03:00.9]} 1... d5 {[%clk 0:02:58]} 2. c4 {[%clk 0:03:00.6]} 2...
c6 {[%clk 0:02:56.3]} 3. Nf3 {[%clk 0:03:00.4]} 3... Nf6 {[%clk 0:02:55.1]} 4.
Qc2 {[%clk 0:03:00.3]} 4... g6 {[%clk 0:02:52.7]} 5. e3 {[%clk 0:03:00.1]} 5...
Bf5 {[%clk 0:02:51.8]} 6. Bd3 {[%clk 0:02:59.9]} 6... Bxd3 {[%clk 0:02:51.7]} 7.
Qxd3 {[%clk 0:03:00.8]} 7... Bg7 {[%clk 0:02:52]} 8. O-O {[%clk 0:03:00.1]} 8...
O-O {[%clk 0:02:52.5]} 9. Nc3 {[%clk 0:02:59.5]} 9... e6 {[%clk 0:02:50.9]} 10.
e4 {[%clk 0:02:54.8]} 10... dxe4 {[%clk 0:02:50.1]} 11. Nxe4 {[%clk 0:02:55.3]}
11... Nxe4 {[%clk 0:02:50.9]} 12. Qxe4 {[%clk 0:02:55.4]} 12... Nd7 {[%clk
0:02:51.8]} 13. Bd2 {[%clk 0:02:54.4]} 13... Re8 {[%clk 0:02:51.3]} 14. Bc3
{[%clk 0:02:53.8]} 14... Rc8 {[%clk 0:02:50.7]} 15. Rad1 {[%clk 0:02:50.7]}
15... Qb6 {[%clk 0:02:45.1]} 16. Ne5 {[%clk 0:02:39]} 16... Nxe5 {[%clk
0:02:42.3]} 17. dxe5 {[%clk 0:02:39]} 17... Red8 {[%clk 0:02:38.7]} 18. b4
{[%clk 0:02:19.6]} 18... Qa6 {[%clk 0:02:01.7]} 19. Qe2 {[%clk 0:02:16.5]} 19...
Bf8 {[%clk 0:01:56.2]} 20. h4 {[%clk 0:02:01.7]} 20... h5 {[%clk 0:01:55.3]} 21.
b5 {[%clk 0:01:40.5]} 21... cxb5 {[%clk 0:01:39.1]} 22. cxb5 {[%clk 0:01:40.1]}
22... Qa4 {[%clk 0:01:39.4]} 23. g3 {[%clk 0:01:14.9]} 23... Bc5 {[%clk
0:01:36.2]} 24. Kg2 {[%clk 0:01:11.4]} 24... Be7 {[%clk 0:01:14.5]} 25. Qf3
{[%clk 0:01:00.5]} 25... Rxd1 {[%clk 0:01:03.7]} 26. Rxd1 {[%clk 0:00:59.3]}
26... Rxc3 {[%clk 0:00:59]} 27. Qxc3 {[%clk 0:00:55.7]} 27... Qxd1 {[%clk
0:00:58]} 28. Qc8+ {[%clk 0:00:55.3]} 28... Bd8 {[%clk 0:00:53.1]} 29. Qxb7
{[%clk 0:00:56.2]} 29... Qd5+ {[%clk 0:00:52.3]} 30. Qxd5 {[%clk 0:00:54.9]}
30... exd5 {[%clk 0:00:53.2]} 31. Kf3 {[%clk 0:00:55.4]} 31... Bb6 {[%clk
0:00:52.9]} 32. Ke2 {[%clk 0:00:52.7]} 32... f6 {[%clk 0:00:52.4]} 33. exf6
{[%clk 0:00:50.6]} 33... Kf7 {[%clk 0:00:51.9]} 34. f3 {[%clk 0:00:48.9]} 34...
Kxf6 {[%clk 0:00:52.1]} 35. g4 {[%clk 0:00:49]} 35... Ke5 {[%clk 0:00:51.6]} 36.
a4 {[%clk 0:00:37.4]} 36... Kf4 {[%clk 0:00:49.4]} 37. gxh5 {[%clk 0:00:35.8]}
37... gxh5 {[%clk 0:00:48.8]} 0-1

[Event "*** SCC Grand Prix: Titled Tuesday Blitz"]
[Site "Chess.com"]
[Date "2020.08.11"]
[Round "5"]
[White "Zarinur"]
[Black "Duong57"]
[Result "0-1"]
[WhiteElo "2155"]
[BlackElo "2338"]
[TimeControl "180+1"]
[EndTime "10:54:36 PDT"]
[Termination "Duong57 won on time"]

1. e4 {[%clk 0:03:00.9]} 1... c5 {[%clk 0:02:59.2]} 2. Nf3 {[%clk 0:03:00.5]}
2... d6 {[%clk 0:02:59.2]} 3. Bb5+ {[%clk 0:02:59.5]} 3... Nc6 {[%clk
0:02:58.8]} 4. O-O {[%clk 0:02:55.3]} 4... Bd7 {[%clk 0:02:58.6]} 5. Re1 {[%clk
0:02:53.1]} 5... Nf6 {[%clk 0:02:51.4]} 6. c3 {[%clk 0:02:50.8]} 6... a6 {[%clk
0:02:51.3]} 7. Bf1 {[%clk 0:02:48.9]} 7... Bg4 {[%clk 0:02:50.8]} 8. d3 {[%clk
0:02:43.8]} 8... e5 {[%clk 0:02:43.6]} 9. h3 {[%clk 0:02:13.6]} 9... Bxf3 {[%clk
0:02:41.9]} 10. Qxf3 {[%clk 0:02:10.5]} 10... g6 {[%clk 0:02:42.3]} 11. Bg5
{[%clk 0:02:04.3]} 11... Bg7 {[%clk 0:02:42.7]} 12. Nd2 {[%clk 0:01:52.5]} 12...
h6 {[%clk 0:02:42.3]} 13. Bxf6 {[%clk 0:01:43.2]} 13... Bxf6 {[%clk 0:02:27.1]}
14. Nc4 {[%clk 0:01:28.5]} 14... Bg7 {[%clk 0:02:26.1]} 15. Ne3 {[%clk
0:01:23.1]} 15... Ne7 {[%clk 0:02:24.5]} 16. a4 {[%clk 0:01:13.4]} 16... O-O
{[%clk 0:02:23.6]} 17. a5 {[%clk 0:01:00.3]} 17... Qd7 {[%clk 0:02:23.3]} 18.
Nc4 {[%clk 0:00:54.7]} 18... Qe6 {[%clk 0:02:16.3]} 19. Red1 {[%clk 0:00:43.8]}
19... Rad8 {[%clk 0:02:07.7]} 20. Nb6 {[%clk 0:00:40.9]} 20... f6 {[%clk
0:01:44.7]} 21. d4 {[%clk 0:00:37.6]} 21... cxd4 {[%clk 0:01:43]} 22. Bc4 {[%clk
0:00:36.6]} 22... d5 {[%clk 0:01:41.6]} 23. exd5 {[%clk 0:00:13.2]} 23... Qd6
{[%clk 0:01:41.2]} 24. Ba2 {[%clk 0:00:10.6]} 24... f5 {[%clk 0:01:36.3]} 25.
Nc4 {[%clk 0:00:09.5]} 25... Qc5 {[%clk 0:01:27.3]} 26. d6 {[%clk 0:00:09.1]}
26... Nc6 {[%clk 0:01:13.9]} 27. Nxe5+ {[%clk 0:00:08.5]} 27... Kh7 {[%clk
0:01:14.4]} 28. Nf7 {[%clk 0:00:06.3]} 28... Rxf7 {[%clk 0:01:12.8]} 29. Bxf7
{[%clk 0:00:04.8]} 29... Rxd6 {[%clk 0:01:13.5]} 30. cxd4 {[%clk 0:00:05]} 30...
Bxd4 {[%clk 0:01:13]} 31. g3 {[%clk 0:00:02.3]} 31... Ne5 {[%clk 0:01:10.4]} 32.
Qb3 {[%clk 0:00:02.4]} 32... Bxf2+ {[%clk 0:01:09.3]} 33. Kg2 {[%clk 0:00:01.7]}
33... Bd4 {[%clk 0:01:08.6]} 0-1